{"text_format":"3","workbook":"xlsx","n_sheets":1,"sheets":["Tuloslaskelma"],"not_rendered":{"defined_names":2},"read":"whole","date_system":"1900"}

{"sheet":"Tuloslaskelma","index":0,"n_rows":60,"n_cols":10,"rows_kept":60,"merged":[[9,1,9,9],[16,1,16,9],[24,1,24,9],[38,1,38,9],[43,1,43,9],[56,1,56,9]]}
[null,"Tuloslaskelma"]
[]
[{"$nulls":3},"EDELLINEN KAUSI ","BUDJETTI  ","NYKYINEN KAUSI  ",null,"NYKYINEN KAUSI\n%-OSUUS MYYNNISTÄ  ","%-MUUTOS EDELLISESTÄ\nKAUDESTA  ","%-MUUTOS\nBUDJETISTA  "]
[null,"Myyntituotto"]
[null,"Tuote/palvelu 1",null,40,50,45,null,{"$f":"IFERROR(Myyntituotto[[#This Row],[Current Period]]/SUBTOTAL(109,Myyntituotto[Current Period]),0)","v":{"v":1,"d":"100.0%"}},{"$f":"IFERROR(Myyntituotto[[#This Row],[Current Period]]/Myyntituotto[[#This Row],[Prior Period]]-1,0)","v":{"v":0.125,"d":"12.5%"}},{"$f":"IFERROR(Myyntituotto[[#This Row],[Current Period]]/Myyntituotto[[#This Row],[Budget]]-1,0)","v":{"v":-0.09999999999999998,"d":"-10.0%"}}]
[null,"Tuote/palvelu 2",{"$nulls":5},{"$f":"IFERROR(Myyntituotto[[#This Row],[Current Period]]/SUBTOTAL(109,Myyntituotto[Current Period]),0)","v":0},{"$f":"IFERROR(Myyntituotto[[#This Row],[Current Period]]/Myyntituotto[[#This Row],[Prior Period]]-1,0)","v":0},{"$f":"IFERROR(Myyntituotto[[#This Row],[Current Period]]/Myyntituotto[[#This Row],[Budget]]-1,0)","v":0}]
[null,"Tuote/palvelu 3",{"$nulls":5},{"$f":"IFERROR(Myyntituotto[[#This Row],[Current Period]]/SUBTOTAL(109,Myyntituotto[Current Period]),0)","v":0},{"$f":"IFERROR(Myyntituotto[[#This Row],[Current Period]]/Myyntituotto[[#This Row],[Prior Period]]-1,0)","v":0},{"$f":"IFERROR(Myyntituotto[[#This Row],[Current Period]]/Myyntituotto[[#This Row],[Budget]]-1,0)","v":0}]
[null,"Tuote/palvelu 4",{"$nulls":5},{"$f":"IFERROR(Myyntituotto[[#This Row],[Current Period]]/SUBTOTAL(109,Myyntituotto[Current Period]),0)","v":0},{"$f":"IFERROR(Myyntituotto[[#This Row],[Current Period]]/Myyntituotto[[#This Row],[Prior Period]]-1,0)","v":0},{"$f":"IFERROR(Myyntituotto[[#This Row],[Current Period]]/Myyntituotto[[#This Row],[Budget]]-1,0)","v":0}]
[null,"Yhteensä",null,{"$f":"SUBTOTAL(109,Myyntituotto[Prior Period])","v":40},{"$f":"SUBTOTAL(109,Myyntituotto[Budget])","v":50},{"$f":"SUBTOTAL(109,Myyntituotto[Current Period])","v":45},null,{"$f":"IFERROR(Myyntituotto[[#Totals],[Current Period]]/Myyntituotto[[#Totals],[Current Period]],0)","v":{"v":1,"d":"100.0%"}},{"$f":"IFERROR(Myyntituotto[[#Totals],[Current Period]]/Myyntituotto[[#Totals],[Prior Period]]-1,0)","v":{"v":0.125,"d":"12.5%"}},{"$f":"IFERROR(Myyntituotto[[#Totals],[Current Period]]/Myyntituotto[[#Totals],[Budget]]-1,0)","v":{"v":-0.09999999999999998,"d":"-10.0%"}}]
[]
[null,"Myynnin kulut"]
[null,"Tuote/palvelu 1",null,null,2,3,null,{"$f":"IFERROR(MyynninKulut[[#This Row],[Current Period]]/SUBTOTAL(109,Myyntituotto[Current Period]),0)","v":{"v":0.06666666666666667,"d":"6.7%"}},{"$f":"IFERROR(MyynninKulut[[#This Row],[Current Period]]/MyynninKulut[[#This Row],[Prior Period]]-1,0)","v":0},{"$f":"IFERROR(MyynninKulut[[#This Row],[Current Period]]/MyynninKulut[[#This Row],[Budget]]-1,0)","v":{"v":0.5,"d":"50.0%"}}]
[null,"Tuote/palvelu 2",null,null,5,3,null,{"$f":"IFERROR(MyynninKulut[[#This Row],[Current Period]]/SUBTOTAL(109,Myyntituotto[Current Period]),0)","v":{"v":0.06666666666666667,"d":"6.7%"}},{"$f":"IFERROR(MyynninKulut[[#This Row],[Current Period]]/MyynninKulut[[#This Row],[Prior Period]]-1,0)","v":0},{"$f":"IFERROR(MyynninKulut[[#This Row],[Current Period]]/MyynninKulut[[#This Row],[Budget]]-1,0)","v":{"v":-0.4,"d":"-40.0%"}}]
[null,"Tuote/palvelu 3",{"$nulls":3},1,null,{"$f":"IFERROR(MyynninKulut[[#This Row],[Current Period]]/SUBTOTAL(109,Myyntituotto[Current Period]),0)","v":{"v":0.022222222222222223,"d":"2.2%"}},{"$f":"IFERROR(MyynninKulut[[#This Row],[Current Period]]/MyynninKulut[[#This Row],[Prior Period]]-1,0)","v":0},{"$f":"IFERROR(MyynninKulut[[#This Row],[Current Period]]/MyynninKulut[[#This Row],[Budget]]-1,0)","v":0}]
[null,"Tuote/palvelu 4",{"$nulls":5},{"$f":"IFERROR(MyynninKulut[[#This Row],[Current Period]]/SUBTOTAL(109,Myyntituotto[Current Period]),0)","v":0},{"$f":"IFERROR(MyynninKulut[[#This Row],[Current Period]]/MyynninKulut[[#This Row],[Prior Period]]-1,0)","v":0},{"$f":"IFERROR(MyynninKulut[[#This Row],[Current Period]]/MyynninKulut[[#This Row],[Budget]]-1,0)","v":0}]
[null,"Yhteensä",null,{"$f":"SUBTOTAL(109,MyynninKulut[Prior Period])","v":0},{"$f":"SUBTOTAL(109,MyynninKulut[Budget])","v":7},{"$f":"SUBTOTAL(109,MyynninKulut[Current Period])","v":7},null,{"$f":"IFERROR(MyynninKulut[[#Totals],[Current Period]]/SUBTOTAL(109,Myyntituotto[Current Period]),0)","v":{"v":0.15555555555555556,"d":"15.6%"}},{"$f":"IFERROR(MyynninKulut[[#Totals],[Current Period]]/MyynninKulut[[#Totals],[Prior Period]]-1,0)","v":0},{"$f":"IFERROR(MyynninKulut[[#Totals],[Current Period]]/MyynninKulut[[#Totals],[Budget]]-1,0)","v":0}]
[]
[null,"Bruttovoitto",null,{"$f":"SUM(Myyntituotto[Prior Period])-SUM(MyynninKulut[Prior Period])","v":40},{"$f":"SUM(Myyntituotto[Budget])-SUM(MyynninKulut[Budget])","v":43},{"$f":"SUM(Myyntituotto[Current Period])-SUM(MyynninKulut[Current Period])","v":38},null,{"$f":"IFERROR(F18/SUBTOTAL(109,Myyntituotto[Current Period]),0)","v":{"v":0.8444444444444444,"d":"84.4%"}},{"$f":"IFERROR(F18/D18-1,0)","v":{"v":-0.050000000000000044,"d":"-5.0%"}},{"$f":"IFERROR(F18/E18-1,0)","v":{"v":-0.11627906976744184,"d":"-11.6%"}}]
[]
[null,"Käyttökulut: myynti ja markkinointi"]
[null,"Markkinointi",null,null,22,19,null,{"$f":"IFERROR(MyyntiJaMarkkinointi[[#This Row],[Current Period]]/SUBTOTAL(109,Myyntituotto[Current Period]),0)","v":{"v":0.4222222222222222,"d":"42.2%"}},{"$f":"IFERROR(MyyntiJaMarkkinointi[[#This Row],[Current Period]]/MyyntiJaMarkkinointi[[#This Row],[Prior Period]]-1,0)","v":0},{"$f":"IFERROR(MyyntiJaMarkkinointi[[#This Row],[Current Period]]/MyyntiJaMarkkinointi[[#This Row],[Budget]]-1,0)","v":{"v":-0.13636363636363635,"d":"-13.6%"}}]
[null,"Suoramarkkinointi",{"$nulls":5},{"$f":"IFERROR(MyyntiJaMarkkinointi[[#This Row],[Current Period]]/SUBTOTAL(109,Myyntituotto[Current Period]),0)","v":0},{"$f":"IFERROR(MyyntiJaMarkkinointi[[#This Row],[Current Period]]/MyyntiJaMarkkinointi[[#This Row],[Prior Period]]-1,0)","v":0},{"$f":"IFERROR(MyyntiJaMarkkinointi[[#This Row],[Current Period]]/MyyntiJaMarkkinointi[[#This Row],[Budget]]-1,0)","v":0}]
[null,"Muut kulut (määritä)",{"$nulls":5},{"$f":"IFERROR(MyyntiJaMarkkinointi[[#This Row],[Current Period]]/SUBTOTAL(109,Myyntituotto[Current Period]),0)","v":0},{"$f":"IFERROR(MyyntiJaMarkkinointi[[#This Row],[Current Period]]/MyyntiJaMarkkinointi[[#This Row],[Prior Period]]-1,0)","v":0},{"$f":"IFERROR(MyyntiJaMarkkinointi[[#This Row],[Current Period]]/MyyntiJaMarkkinointi[[#This Row],[Budget]]-1,0)","v":0}]
[null,"Yhteensä",null,{"$f":"SUBTOTAL(109,MyyntiJaMarkkinointi[Prior Period])","v":0},{"$f":"SUBTOTAL(109,MyyntiJaMarkkinointi[Budget])","v":22},{"$f":"SUBTOTAL(109,MyyntiJaMarkkinointi[Current Period])","v":19},null,{"$f":"IFERROR(MyyntiJaMarkkinointi[[#Totals],[Current Period]]/SUBTOTAL(109,Myyntituotto[Current Period]),0)","v":{"v":0.4222222222222222,"d":"42.2%"}},{"$f":"IFERROR(MyyntiJaMarkkinointi[[#Totals],[Current Period]]/MyyntiJaMarkkinointi[[#Totals],[Prior Period]]-1,0)","v":0},{"$f":"IFERROR(MyyntiJaMarkkinointi[[#Totals],[Current Period]]/MyyntiJaMarkkinointi[[#Totals],[Budget]]-1,0)","v":{"v":-0.13636363636363635,"d":"-13.6%"}}]
[]
[null,"Käyttökulut: yleiset ja hallinto"]
[null,"Palkkakulut",null,null,56,51,null,{"$f":"IFERROR(YleisetJaHallinto[[#This Row],[Current Period]]/SUBTOTAL(109,Myyntituotto[Current Period]),0)","v":{"v":1.1333333333333333,"d":"113.3%"}},{"$f":"IFERROR(YleisetJaHallinto[[#This Row],[Current Period]]/YleisetJaHallinto[[#This Row],[Prior Period]]-1,0)","v":0},{"$f":"IFERROR(YleisetJaHallinto[[#This Row],[Current Period]]/YleisetJaHallinto[[#This Row],[Budget]]-1,0)","v":{"v":-0.0892857142857143,"d":"-8.9%"}}]
[null,"Ostopalvelut",{"$nulls":5},{"$f":"IFERROR(YleisetJaHallinto[[#This Row],[Current Period]]/SUBTOTAL(109,Myyntituotto[Current Period]),0)","v":0},{"$f":"IFERROR(YleisetJaHallinto[[#This Row],[Current Period]]/YleisetJaHallinto[[#This Row],[Prior Period]]-1,0)","v":0},{"$f":"IFERROR(YleisetJaHallinto[[#This Row],[Current Period]]/YleisetJaHallinto[[#This Row],[Budget]]-1,0)","v":0}]
[null,"Tarvikkeet",{"$nulls":5},{"$f":"IFERROR(YleisetJaHallinto[[#This Row],[Current Period]]/SUBTOTAL(109,Myyntituotto[Current Period]),0)","v":0},{"$f":"IFERROR(YleisetJaHallinto[[#This Row],[Current Period]]/YleisetJaHallinto[[#This Row],[Prior Period]]-1,0)","v":0},{"$f":"IFERROR(YleisetJaHallinto[[#This Row],[Current Period]]/YleisetJaHallinto[[#This Row],[Budget]]-1,0)","v":0}]
[null,"Edustuskulut",{"$nulls":5},{"$f":"IFERROR(YleisetJaHallinto[[#This Row],[Current Period]]/SUBTOTAL(109,Myyntituotto[Current Period]),0)","v":0},{"$f":"IFERROR(YleisetJaHallinto[[#This Row],[Current Period]]/YleisetJaHallinto[[#This Row],[Prior Period]]-1,0)","v":0},{"$f":"IFERROR(YleisetJaHallinto[[#This Row],[Current Period]]/YleisetJaHallinto[[#This Row],[Budget]]-1,0)","v":0}]
[null,"Vuokra",{"$nulls":5},{"$f":"IFERROR(YleisetJaHallinto[[#This Row],[Current Period]]/SUBTOTAL(109,Myyntituotto[Current Period]),0)","v":0},{"$f":"IFERROR(YleisetJaHallinto[[#This Row],[Current Period]]/YleisetJaHallinto[[#This Row],[Prior Period]]-1,0)","v":0},{"$f":"IFERROR(YleisetJaHallinto[[#This Row],[Current Period]]/YleisetJaHallinto[[#This Row],[Budget]]-1,0)","v":0}]
[null,"Puhelin",{"$nulls":5},{"$f":"IFERROR(YleisetJaHallinto[[#This Row],[Current Period]]/SUBTOTAL(109,Myyntituotto[Current Period]),0)","v":0},{"$f":"IFERROR(YleisetJaHallinto[[#This Row],[Current Period]]/YleisetJaHallinto[[#This Row],[Prior Period]]-1,0)","v":0},{"$f":"IFERROR(YleisetJaHallinto[[#This Row],[Current Period]]/YleisetJaHallinto[[#This Row],[Budget]]-1,0)","v":0}]
[null,"Kunnallispalvelut",{"$nulls":5},{"$f":"IFERROR(YleisetJaHallinto[[#This Row],[Current Period]]/SUBTOTAL(109,Myyntituotto[Current Period]),0)","v":0},{"$f":"IFERROR(YleisetJaHallinto[[#This Row],[Current Period]]/YleisetJaHallinto[[#This Row],[Prior Period]]-1,0)","v":0},{"$f":"IFERROR(YleisetJaHallinto[[#This Row],[Current Period]]/YleisetJaHallinto[[#This Row],[Budget]]-1,0)","v":0}]
[null,"Poistot",{"$nulls":5},{"$f":"IFERROR(YleisetJaHallinto[[#This Row],[Current Period]]/SUBTOTAL(109,Myyntituotto[Current Period]),0)","v":0},{"$f":"IFERROR(YleisetJaHallinto[[#This Row],[Current Period]]/YleisetJaHallinto[[#This Row],[Prior Period]]-1,0)","v":0},{"$f":"IFERROR(YleisetJaHallinto[[#This Row],[Current Period]]/YleisetJaHallinto[[#This Row],[Budget]]-1,0)","v":0}]
[null,"Vakuutus",{"$nulls":5},{"$f":"IFERROR(YleisetJaHallinto[[#This Row],[Current Period]]/SUBTOTAL(109,Myyntituotto[Current Period]),0)","v":0},{"$f":"IFERROR(YleisetJaHallinto[[#This Row],[Current Period]]/YleisetJaHallinto[[#This Row],[Prior Period]]-1,0)","v":0},{"$f":"IFERROR(YleisetJaHallinto[[#This Row],[Current Period]]/YleisetJaHallinto[[#This Row],[Budget]]-1,0)","v":0}]
[null,"Korjaukset ja ylläpito",{"$nulls":5},{"$f":"IFERROR(YleisetJaHallinto[[#This Row],[Current Period]]/SUBTOTAL(109,Myyntituotto[Current Period]),0)","v":0},{"$f":"IFERROR(YleisetJaHallinto[[#This Row],[Current Period]]/YleisetJaHallinto[[#This Row],[Prior Period]]-1,0)","v":0},{"$f":"IFERROR(YleisetJaHallinto[[#This Row],[Current Period]]/YleisetJaHallinto[[#This Row],[Budget]]-1,0)","v":0}]
[null,"Muut kulut (määritä)",{"$nulls":5},{"$f":"IFERROR(YleisetJaHallinto[[#This Row],[Current Period]]/SUBTOTAL(109,Myyntituotto[Current Period]),0)","v":0},{"$f":"IFERROR(YleisetJaHallinto[[#This Row],[Current Period]]/YleisetJaHallinto[[#This Row],[Prior Period]]-1,0)","v":0},{"$f":"IFERROR(YleisetJaHallinto[[#This Row],[Current Period]]/YleisetJaHallinto[[#This Row],[Budget]]-1,0)","v":0}]
[null,"Yhteensä",null,{"$f":"SUBTOTAL(109,YleisetJaHallinto[Prior Period])","v":0},{"$f":"SUBTOTAL(109,YleisetJaHallinto[Budget])","v":56},{"$f":"SUBTOTAL(109,YleisetJaHallinto[Current Period])","v":51},null,{"$f":"IFERROR(YleisetJaHallinto[[#Totals],[Current Period]]/SUBTOTAL(109,Myyntituotto[Current Period]),0)","v":{"v":1.1333333333333333,"d":"113.3%"}},{"$f":"IFERROR(YleisetJaHallinto[[#Totals],[Current Period]]/YleisetJaHallinto[[#Totals],[Prior Period]]-1,0)","v":0},{"$f":"IFERROR(YleisetJaHallinto[[#Totals],[Current Period]]/YleisetJaHallinto[[#Totals],[Budget]]-1,0)","v":{"v":-0.0892857142857143,"d":"-8.9%"}}]
[]
[null,"Käyttökulut: muut"]
[null,"Muu käyttökulu 1",null,null,10,null,null,{"$f":"IFERROR(MuuKäyttökustannusluokka[[#This Row],[Current Period]]/SUBTOTAL(109,Myyntituotto[Current Period]),0)","v":0},{"$f":"IFERROR(MuuKäyttökustannusluokka[[#This Row],[Current Period]]/MuuKäyttökustannusluokka[[#This Row],[Prior Period]]-1,0)","v":0},{"$f":"IFERROR(MuuKäyttökustannusluokka[[#This Row],[Current Period]]/MuuKäyttökustannusluokka[[#This Row],[Budget]]-1,0)","v":{"v":-1,"d":"-100.0%"}}]
[null,"Muu käyttökulu 2",{"$nulls":5},{"$f":"IFERROR(MuuKäyttökustannusluokka[[#This Row],[Current Period]]/SUBTOTAL(109,Myyntituotto[Current Period]),0)","v":0},{"$f":"IFERROR(MuuKäyttökustannusluokka[[#This Row],[Current Period]]/MuuKäyttökustannusluokka[[#This Row],[Prior Period]]-1,0)","v":0},{"$f":"IFERROR(MuuKäyttökustannusluokka[[#This Row],[Current Period]]/MuuKäyttökustannusluokka[[#This Row],[Budget]]-1,0)","v":0}]
[null,"Yhteensä",null,{"$f":"SUBTOTAL(109,MuuKäyttökustannusluokka[Prior Period])","v":0},{"$f":"SUBTOTAL(109,MuuKäyttökustannusluokka[Budget])","v":10},{"$f":"SUBTOTAL(109,MuuKäyttökustannusluokka[Current Period])","v":0},null,{"$f":"IFERROR(MuuKäyttökustannusluokka[[#Totals],[Current Period]]/SUBTOTAL(109,Myyntituotto[Current Period]),0)","v":0},{"$f":"IFERROR(MuuKäyttökustannusluokka[[#Totals],[Current Period]]/MuuKäyttökustannusluokka[[#Totals],[Prior Period]]-1,0)","v":0},{"$f":"IFERROR(MuuKäyttökustannusluokka[[#Totals],[Current Period]]/MuuKäyttökustannusluokka[[#Totals],[Budget]]-1,0)","v":{"v":-1,"d":"-100.0%"}}]
[]
[null,"Kokonaiskäyttökulut",null,{"$f":"SUM(MyyntiJaMarkkinointi[Prior Period],YleisetJaHallinto[Prior Period],MuuKäyttökustannusluokka[Prior Period])","v":0},{"$f":"SUM(MyyntiJaMarkkinointi[Budget],YleisetJaHallinto[Budget],MuuKäyttökustannusluokka[Budget])","v":88},{"$f":"SUM(MyyntiJaMarkkinointi[Current Period],YleisetJaHallinto[Current Period],MuuKäyttökustannusluokka[Current Period])","v":70},null,{"$f":"IFERROR(F45/SUBTOTAL(109,Myyntituotto[Current Period]),0)","v":{"v":1.5555555555555556,"d":"155.6%"}},{"$f":"IFERROR(F45/D45-1,0)","v":0},{"$f":"IFERROR(F45/E45-1,0)","v":{"v":-0.20454545454545459,"d":"-20.5%"}}]
[]
[null,"Toiminnosta saatavat tulot",null,{"$f":"D18-D45","v":40},{"$f":"E18-E45","v":-45},{"$f":"F18-F45","v":-32},null,{"$f":"IFERROR(F47/SUBTOTAL(109,Myyntituotto[Current Period]),0)","v":{"v":-0.7111111111111111,"d":"-71.1%"}},{"$f":"IFERROR(IF(D47=F47,0,IF(F47>D47,ABS((F47/D47)-1),IF(AND(F47<D47,D47<0),-((F47/D47)-1),(F47/D47)-1))),0)","v":{"v":-1.8,"d":"-180.0%"}},{"$f":"IFERROR(IF(E47=F47,0,IF(F47>E47,ABS((F47/E47)-1),IF(AND(F47<E47,E47<0),-((F47/E47)-1),(F47/E47)-1))),0)","v":{"v":0.28888888888888886,"d":"28.9%"}}]
[]
[null,"Muut tulot",{"$nulls":5},{"$f":"IFERROR(F49/SUBTOTAL(109,Myyntituotto[Current Period]),0)","v":0},{"$f":"IFERROR(F49/D49-1,0)","v":0},{"$f":"IFERROR(F49/E49-1,0)","v":0}]
[]
[null,"Verot"]
[null,"Tuloverot",null,null,32,30,null,{"$f":"IFERROR(Verot[[#This Row],[Current Period]]/SUBTOTAL(109,Myyntituotto[Current Period]),0)","v":{"v":0.6666666666666666,"d":"66.7%"}},{"$f":"IFERROR(Verot[[#This Row],[Current Period]]/Verot[[#This Row],[Prior Period]]-1,0)","v":0},{"$f":"IFERROR(Verot[[#This Row],[Current Period]]/Verot[[#This Row],[Budget]]-1,0)","v":{"v":-0.0625,"d":"-6.3%"}}]
[null,"Kunnallisvero",{"$nulls":5},{"$f":"IFERROR(Verot[[#This Row],[Current Period]]/SUBTOTAL(109,Myyntituotto[Current Period]),0)","v":0},{"$f":"IFERROR(Verot[[#This Row],[Current Period]]/Verot[[#This Row],[Prior Period]]-1,0)","v":0},{"$f":"IFERROR(Verot[[#This Row],[Current Period]]/Verot[[#This Row],[Budget]]-1,0)","v":0}]
[null,"Kiinteistövero",{"$nulls":5},{"$f":"IFERROR(Verot[[#This Row],[Current Period]]/SUBTOTAL(109,Myyntituotto[Current Period]),0)","v":0},{"$f":"IFERROR(Verot[[#This Row],[Current Period]]/Verot[[#This Row],[Prior Period]]-1,0)","v":0},{"$f":"IFERROR(Verot[[#This Row],[Current Period]]/Verot[[#This Row],[Budget]]-1,0)","v":0}]
[null,"Muut verot (määritä)",{"$nulls":5},{"$f":"IFERROR(Verot[[#This Row],[Current Period]]/SUBTOTAL(109,Myyntituotto[Current Period]),0)","v":0},{"$f":"IFERROR(Verot[[#This Row],[Current Period]]/Verot[[#This Row],[Prior Period]]-1,0)","v":0},{"$f":"IFERROR(Verot[[#This Row],[Current Period]]/Verot[[#This Row],[Budget]]-1,0)","v":0}]
[null,"Yhteensä",null,{"$f":"SUBTOTAL(109,Verot[Prior Period])","v":0},{"$f":"SUBTOTAL(109,Verot[Budget])","v":32},{"$f":"SUBTOTAL(109,Verot[Current Period])","v":30},null,{"$f":"IFERROR(Verot[[#Totals],[Current Period]]/SUBTOTAL(109,Myyntituotto[Current Period]),0)","v":{"v":0.6666666666666666,"d":"66.7%"}},{"$f":"IFERROR(Verot[[#Totals],[Current Period]]/Verot[[#Totals],[Prior Period]]-1,0)","v":0},{"$f":"IFERROR(Verot[[#Totals],[Current Period]]/Verot[[#Totals],[Budget]]-1,0)","v":{"v":-0.0625,"d":"-6.3%"}}]
[]
[null,"Nettovoitto",null,{"$f":"D47+D49-Verot[[#Totals],[Prior Period]]","v":40},{"$f":"E47+E49-Verot[[#Totals],[Prior Period]]","v":-45},{"$f":"F47+F49-Verot[[#Totals],[Prior Period]]","v":-32},null,{"$f":"IFERROR(F58/SUBTOTAL(109,Myyntituotto[Current Period]),0)","v":{"v":-0.7111111111111111,"d":"-71.1%"}},{"$f":"IFERROR(IF(D58=F58,0,IF(F58>D58,ABS((F58/D58)-1),IF(AND(F58<D58,D58<0),-((F58/D58)-1),(F58/D58)-1))),0)","v":{"v":-1.8,"d":"-180.0%"}},{"$f":"IFERROR(IF(E58=F58,0,IF(F58>E58,ABS((F58/E58)-1),IF(AND(F58<E58,E58<0),-((F58/E58)-1),(F58/E58)-1))),0)","v":{"v":0.28888888888888886,"d":"28.9%"}}]
[null,"Käyttökate",null,{"$f":"D18/SUM(Myyntituotto[Prior Period])","v":{"v":1,"d":"100.0%"}},{"$f":"E18/SUM(Myyntituotto[Budget])","v":{"v":0.86,"d":"86.0%"}},{"$f":"F18/SUM(Myyntituotto[Current Period])","v":{"v":0.8444444444444444,"d":"84.4%"}}]
[null,"Myyntikate",null,{"$f":"D58/SUM(Myyntituotto[Prior Period])","v":{"v":1,"d":"100.0%"}},{"$f":"E58/SUM(Myyntituotto[Budget])","v":{"v":-0.9,"d":"-90.0%"}},{"$f":"F58/SUM(Myyntituotto[Current Period])","v":{"v":-0.7111111111111111,"d":"-71.1%"}}]